bitfinex/quotes_SOLUSD_20251019
["timestamp","ask_amount","ask_price","bid_price","bid_amount"]
[1760868482467,22.88,187.66,187.59,6.56384339]
[1760868482766,23.51716405,187.66,187.59,6.56384339]
[1760868482960,6.01907007,187.65,187.57,6.56424421]
[1760868483135,1.32716405,187.64,187.56,10.87647521]
[1760868483336,0.69,187.63,187.52,5.3327645]
[1760868483560,22.88,187.61,187.52,6.0327645]
[1760868483752,0.63716405,187.6,187.53,10.87647521]
[1760868483952,23.51716405,187.6,187.52,0.7]
[1760868484359,0.69,187.59,187.49,0.7]
[1760868484563,0.63716405,187.58,187.49,0.7]
[1760868484766,0.69,187.57,187.49,0.7]
[1760868485069,5.33191149,187.55,187.47,0.2]
[1760868485360,22.88,187.51,187.47,0.2]
[1760868485567,1.32716405,187.5,187.47,0.2]
[1760868485867,0.63716405,187.5,187.47,0.2]
[1760868486162,0.63716405,187.53,187.48,0.7]
[1760868486370,0.63716405,187.54,187.49,0.7]
[1760868486591,1.99999999,187.67,187.49,0.7]
[1760868486592,0.69,187.6,187.49,1.23336177]
[1760868486881,0.63716405,187.62,187.52,10.87647521]
[1760868487069,0.63716405,187.62,187.51,18.66567116]
[1760868487070,17.4,187.62,187.54,10.87647521]
[1760868487271,17.4,187.62,187.55,1.23319114]
[1760868487571,1.32716405,187.61,187.5,0.7]
[1760868487747,22.88,187.55,187.47,0.2]
[1760868487950,1.32716405,187.54,187.47,0.2]
[1760868488147,22.88,187.53,187.47,0.2]
[1760868488340,1.32716405,187.52,187.47,0.2]
[1760868488547,0.69,187.51,187.47,0.2]
[1760868489052,5.33310077,187.51,187.47,0.2]
[1760868489372,0.63716405,187.55,187.48,0.7]
[1760868489869,51.16,187.56,187.49,0.53336177]
[1760868490064,28.28,187.56,187.5,11.57647521]
[1760868490275,28.28,187.56,187.49,0.53336177]
[1760868490463,1.31716405,187.55,187.47,0.2]
[1760868490652,1.31716405,187.55,187.47,6.23416806]
[1760868491160,29.52918332,187.55,187.47,0.9]
[1760868491464,29.52918332,187.55,187.47,6.23413998]
[1760868491969,29.52918332,187.55,187.47,5.53413998]
[1760868492343,0.68,187.54,187.47,0.2]
[1760868492544,0.63716405,187.53,187.47,0.2]
[1760868493162,0.63716405,187.53,187.47,5.53394445]
[1760868493958,5.96972058,187.53,187.47,0.2]
[1760868494553,0.71,187.52,187.47,0.2]
[1760868494860,5.96972058,187.53,187.47,0.9]
[1760868495060,0.63716405,187.53,187.47,6.2341644]
[1760868495359,1.34716405,187.54,187.47,6.2341644]
[1760868495553,0.63716405,187.54,187.47,6.2341644]
[1760868496454,23.51716405,187.55,187.48,1.23339022]
[1760868496954,29.5591016,187.55,187.48,1.23339022]
[1760868497153,29.5591016,187.55,187.48,0.7]
[1760868497460,29.5591016,187.55,187.48,6.03381523]
[1760868498354,22.88,187.55,187.49,0.7]
[1760868499066,5.3313497,187.57,187.51,5.3330489]
[1760868499272,5.96851375,187.57,187.51,6.0330489]
[1760868499466,5.96851375,187.57,187.51,0.7]
[1760868499666,5.96851375,187.57,187.5,5.86665922]
[1760868499980,0.71,187.56,187.5,0.7]
[1760868500156,0.63716405,187.57,187.5,1.23333333]
[1760868500775,0.71,187.56,187.49,16.21008194]
[1760868501160,0.63716405,187.57,187.51,5.3330489]
[1760868501463,5.33107652,187.58,187.5,5.33330915]
[1760868501464,5.96824057,187.58,187.5,5.33330915]
[1760868501762,0.71,187.57,187.5,5.33330915]
[1760868501975,0.63716405,187.56,187.5,5.33330915]
[1760868502286,1.34716405,187.57,187.5,5.33330915]
[1760868502450,1.34716405,187.57,187.5,6.03330915]
[1760868502786,6.67875498,187.57,187.5,6.03330915]
[1760868503656,5.96824112,187.58,187.51,1.23330489]
[1760868504069,0.63716405,187.58,187.51,1.23330489]
[1760868504650,0.63716405,187.58,187.52,5.3327645]
[1760868504854,22.88,187.6,187.53,1.23324801]
[1760868504855,0.63716405,187.6,187.53,1.23324801]
[1760868505072,102.1,187.61,187.54,0.7]
[1760868505281,0.63716405,187.61,187.54,0.7]
[1760868506460,0.71,187.6,187.54,0.7]
[1760868507476,6.04054359,187.6,187.54,6.03218149]
[1760868507676,6.04054359,187.6,187.52,13.86518771]
[1760868507677,0.63716405,187.59,187.52,5.33249005]
[1760868507874,1.34716405,187.59,187.52,5.33249005]
[1760868508178,36.20504617,187.62,187.52,5.33249005]
[1760868508179,0.63716405,187.61,187.53,0.7]
[1760868508478,0.71,187.6,187.52,5.33249005]
[1760868508669,0.71,187.59,187.52,5.33249005]
[1760868509681,6.04077831,187.59,187.52,5.33249005]
[1760868509880,0.63716405,187.58,187.52,5.33249005]
[1760868510072,6.04077831,187.59,187.52,5.33249005]
[1760868510278,0.63716405,187.58,187.52,5.33249005]
[1760868511093,5.96837978,187.58,187.51,6.03303706]
[1760868511279,0.71,187.57,187.51,5.33303706]
[1760868511965,19.29602665,187.58,187.49,5.86681559]
[1760868512187,19.29602665,187.58,187.47,0.2]
[1760868512188,0.63716405,187.56,187.47,5.53399732]
[1760868512479,0.71,187.55,187.47,5.53399732]
[1760868512682,24.22716405,187.54,187.47,5.53399732]
[1760868513263,5.33248013,187.53,187.47,5.53399732]
[1760868513463,1.34716405,187.52,187.47,0.2]
[1760868513691,0.71,187.51,187.47,0.2]
[1760868513990,0.71,187.5,187.47,0.2]
[1760868514287,0.63716405,187.52,187.47,0.9]
[1760868514472,1.34716405,187.52,187.47,0.2]
[1760868514672,0.71,187.51,187.47,0.2]
[1760868515188,5.96995806,187.52,187.47,0.9]
[1760868515688,0.63716405,187.53,187.48,0.7]
[1760868515859,0.71,187.52,187.47,0.2]
[1760868516066,1.34716405,187.51,187.47,0.2]
[1760868516273,0.63716405,187.53,187.47,5.53407834]
[1760868516483,0.71,187.57,187.48,1.23339022]
[1760868516784,0.71,187.56,187.47,18.86954534]
[1760868517098,0.63716405,187.56,187.48,1.23339022]
[1760868517273,0.63716405,187.56,187.49,6.03361779]
[1760868517594,23.51716405,187.57,187.49,19.36766227]
[1760868517882,28.84854622,187.57,187.5,0.7]
[1760868518678,23.51716405,187.57,187.5,0.7]
[1760868519271,23.51716405,187.57,187.51,5.3330489]
[1760868519688,22.88,187.57,187.51,5.3330489]
[1760868519867,5.96830744,187.58,187.52,0.7]
[1760868520771,29.60716405,187.59,187.52,0.7]
[1760868520992,34.93809509,187.59,187.52,0.7]
[1760868521295,34.93809509,187.59,187.53,5.33248013]
[1760868523067,6.04117105,187.58,187.53,5.33248013]
[1760868523274,1.34716405,187.57,187.49,0.53336177]
[1760868523487,1.34716405,187.57,187.49,11.40983698]
[1760868524085,0.68,187.56,187.49,11.40983698]
[1760868524395,0.68,187.56,187.5,5.3330745]
[1760868524578,0.68,187.56,187.51,12.0697801]
[1760868524795,1.31716405,187.59,187.51,12.0697801]
[1760868524992,1.31716405,187.59,187.52,0.66]
[1760868525294,22.88,187.6,187.53,0.53324801]
[1760868525586,0.63716405,187.59,187.54,0.66]
[1760868525783,22.88,187.6,187.51,11.4097801]
[1760868525968,22.88,187.6,187.55,0.66]
[1760868526170,22.88,187.6,187.53,0.66]
[1760868526171,0.68,187.59,187.53,0.66]
[1760868526376,0.63716405,187.63,187.55,10.87647521]
[1760868526589,6.00936189,187.64,187.56,1.19316272]
[1760868526895,1.31716405,187.63,187.54,48.09590485]
[1760868527194,22.88,187.64,187.56,10.87647521]
[1760868527401,23.51716405,187.64,187.57,0.66]
[1760868527599,22.88,187.64,187.57,0.66]
[1760868527806,6.64597033,187.66,187.58,11.40958108]
[1760868528005,6.64597033,187.66,187.58,12.06958108]
[1760868528303,28.84576187,187.67,187.6,5.3304904]
[1760868528466,0.63716405,187.67,187.6,5.9904904]
[1760868528667,0.63716405,187.69,187.61,0.66]
[1760868528888,6.00765676,187.7,187.62,0.53299221]
[1760868529079,28.88765676,187.7,187.63,0.66]
[1760868529302,0.63716405,187.69,187.63,0.66]
[1760868529479,0.68,187.68,187.62,0.53299221]
[1760868529677,0.68,187.68,187.63,5.32963811]
[1760868529908,0.68,187.68,187.63,5.98963811]
[1760868530111,28.20765676,187.7,187.63,5.98963811]
[1760868530112,22.88,187.7,187.64,0.66]
[1760868530388,1.31716405,187.72,187.65,0.532907]
[1760868530590,1.31716405,187.72,187.65,1.192907]
[1760868531200,6.64425053,187.72,187.66,5.3287861]
[1760868531793,6.64425053,187.72,187.64,5.32910878]
[1760868531794,0.68,187.71,187.64,5.32910878]
[1760868531990,5.96425053,187.72,187.65,0.532907]
[1760868532385,0.68,187.71,187.65,0.532907]
[1760868532700,22.88,187.69,187.6,34.08327764]
[1760868532873,1.31716405,187.68,187.59,5.33076321]
[1760868533074,0.68,187.67,187.56,41.54858186]
[1760868533277,6.6461773,187.66,187.58,10.87647521]
[1760868533497,0.63716405,187.67,187.59,1.19307745]
[1760868533886,0.63716405,187.67,187.6,0.66]
[1760868534085,0.68,187.66,187.57,18.65970037]
[1760868534290,0.63716405,187.65,187.58,11.53647521]
[1760868534492,0.63716405,187.66,187.59,0.66]
[1760868534797,23.51716405,187.67,187.59,0.66]
[1760868535181,0.68,187.66,187.58,10.87647521]
[1760868535376,0.68,187.65,187.59,5.33077456]
[1760868536695,0.68,187.65,187.49,29.22119135]
[1760868536696,0.68,187.64,187.54,0.66]
[1760868536899,0.68,187.64,187.56,10.87647521]
[1760868537210,70.38693001,187.67,187.56,0.66]
[1760868537392,6.00989587,187.63,187.56,5.99149636]
[1760868537593,0.63716405,187.62,187.56,5.99149636]
[1760868537791,6.00989587,187.63,187.56,5.99149636]
[1760868538178,0.68,187.63,187.56,5.99149636]
[1760868538502,0.68,187.63,187.57,0.66]
[1760868539305,5.32992218,187.62,187.56,5.33149636]
[1760868539506,6.00992218,187.62,187.56,5.33149636]
[1760868541602,0.63716405,187.61,187.55,0.66]
[1760868541909,1.31716405,187.61,187.52,5.99251359]
[1760868542209,0.68,187.6,187.52,5.99251359]
[1760868542409,1.31716405,187.59,187.51,10.87647521]
[1760868542615,0.68,187.58,187.5,5.99331547]
[1760868542800,0.68,187.58,187.49,10.87647521]
[1760868542801,1.31716405,187.57,187.49,10.87647521]
[1760868543004,0.68,187.56,187.47,0.2]
[1760868543296,0.63716405,187.55,187.47,0.2]
[1760868543700,5.33248013,187.53,187.47,0.2]
[1760868543904,22.88,187.5,187.47,0.2]
[1760868544202,1.31716405,187.49,187.47,0.2]
[1760868544400,0.68,187.48,187.47,0.2]
[1760868544601,0.63716405,187.52,187.47,0.2]
[1760868544923,0.63716405,187.59,187.49,10.87647521]
[1760868545095,5.9679273,187.6,187.51,10.87647521]
[1760868545291,28.8479273,187.6,187.52,0.66]
[1760868545489,22.88,187.57,187.49,0.66]
[1760868545704,5.96894499,187.56,187.48,5.8670217]
[1760868545918,0.63716405,187.56,187.49,0.66]
[1760868546120,23.51716405,187.57,187.5,0.53333333]
[1760868546296,23.51716405,187.57,187.5,1.19333333]
[1760868547008,23.51716405,187.57,187.51,5.3330489]
[1760868547535,22.88,187.58,187.52,1.19327645]
[1760868547740,29.52823192,187.58,187.5,0.66]
[1760868547944,0.68,187.57,187.47,11.07647521]
[1760868548104,1.31716405,187.56,187.47,5.53392417]
[1760868548302,0.68,187.55,187.47,5.53392417]
[1760868548641,0.63716405,187.54,187.47,5.53392417]
[1760868548933,0.68,187.53,187.47,5.53392417]
[1760868549125,6.01250836,187.53,187.47,5.53392417]
[1760868549434,1.31716405,187.52,187.47,0.2]
[1760868549648,22.88,187.5,187.47,0.2]
[1760868549807,0.69,187.49,187.47,0.2]
[1760868550007,0.69,187.48,187.47,0.2]
[1760868550233,23.57,187.54,187.47,6.24418404]
[1760868550413,0.63716405,187.53,187.47,0.91]
[1760868550612,0.63716405,187.53,187.47,0.2]
[1760868550613,0.69,187.52,187.47,0.2]
[1760868551221,0.63716405,187.53,187.48,0.71]
[1760868551635,0.63716405,187.53,187.47,5.53405255]
[1760868551934,0.63716405,187.53,187.47,0.2]
[1760868551935,1.32716405,187.53,187.47,0.2]
[1760868552230,0.63716405,187.53,187.48,0.71]
[1760868552429,22.88,187.54,187.49,0.71]
[1760868552731,23.57,187.54,187.49,0.71]
[1760868552929,22.88,187.54,187.49,0.71]
[1760868553131,22.88,187.54,187.5,6.04320542]
[1760868553323,28.21192748,187.55,187.5,5.33320542]
[1760868553525,24.20313914,187.6,187.51,1.24330489]
[1760868553526,0.69,187.57,187.51,1.24330489]
[1760868553829,0.69,187.58,187.51,0.71]
[1760868554132,0.69,187.58,187.5,5.86653875]
[1760868554432,1.32716405,187.57,187.5,5.33320542]
[1760868554614,0.69,187.56,187.5,5.33320542]
[1760868555141,0.69,187.56,187.5,6.04320542]
[1760868555731,6.02176022,187.56,187.5,6.04320542]
[1760868555922,0.63716405,187.55,187.5,6.04320542]
[1760868556117,1.32716405,187.55,187.5,0.71]
[1760868556319,0.69,187.54,187.49,5.33360495]
[1760868556641,0.63716405,187.55,187.5,0.71]
[1760868556835,6.65851743,187.57,187.51,0.71]
[1760868557045,6.02135338,187.57,187.51,0.71]
[1760868557340,22.88,187.57,187.52,0.53327645]
[1760868557639,23.51716405,187.57,187.53,0.71]
[1760868557941,22.88,187.58,187.54,0.71]
[1760868558146,0.69,187.59,187.54,0.71]
[1760868558471,0.69,187.64,187.55,1.24319114]
[1760868558744,0.63716405,187.63,187.56,0.71]
[1760868559041,0.69,187.66,187.56,0.71]
[1760868559220,0.63716405,187.65,187.57,11.4096095]
[1760868559419,1.32716405,187.65,187.57,11.4096095]
[1760868559626,0.69,187.64,187.56,0.71]
[1760868559824,0.69,187.64,187.57,0.53313429]
[1760868560021,0.63716405,187.65,187.57,0.53313429]
[1760868560238,0.63716405,187.65,187.58,0.71]
[1760868560438,0.63716405,187.65,187.59,0.53307745]
[1760868560824,1.32716405,187.72,187.6,11.58647521]
[1760868561041,22.88,187.7,187.62,10.87647521]
[1760868561243,22.88,187.68,187.63,0.53296381]
[1760868561718,0.63716405,187.67,187.61,0.53302062]
[1760868561922,28.20822777,187.68,187.61,6.57321123]
[1760868562123,28.89822777,187.68,187.61,6.57321123]
[1760868562341,1.32716405,187.67,187.61,5.86321123]
[1760868562526,0.69,187.66,187.58,22.88]
[1760868562732,22.88,187.64,187.55,0.71]
[1760868562924,1.32716405,187.63,187.55,0.71]
[1760868563830,1.32716405,187.63,187.55,6.04177145]
[1760868563831,5.32992218,187.62,187.55,6.04177145]
[1760868564033,0.63716405,187.61,187.55,6.04177145]
[1760868564546,0.69,187.6,187.52,0.53327645]
[1760868564739,0.69,187.6,187.52,5.3327645]
[1760868564922,1.32716405,187.59,187.51,6.0429162]
[1760868565125,0.63716405,187.59,187.52,0.71]
[1760868565349,51.04,187.62,187.53,11.40972322]
[1760868565540,0.69,187.61,187.53,0.53324801]
[1760868565850,0.63716405,187.61,187.55,5.33191149]
[1760868566027,0.63716405,187.61,187.56,0.71]
[1760868566346,1.32716405,187.61,187.56,0.71]
[1760868566652,0.69,187.61,187.56,0.71]
[1760868567029,0.69,187.61,187.56,6.04162026]
[1760868567729,0.69,187.61,187.55,5.86509247]
[1760868568049,0.69,187.61,187.55,6.57509247]
[1760868568445,0.69,187.61,187.55,6.04190133]
[1760868569447,6.02023371,187.61,187.55,6.04190133]
[1760868569951,6.65739776,187.61,187.55,6.04190133]
[1760868570839,23.51716405,187.64,187.56,12.11963793]
[1760868571040,0.69,187.63,187.57,0.71]
[1760868571352,0.69,187.63,187.55,19.37168005]
[1760868571555,28.84656147,187.64,187.55,19.37168005]
[1760868571762,0.69,187.63,187.55,19.37168005]
[1760868572055,28.84656147,187.64,187.55,6.04190133]
[1760868572056,0.69,187.62,187.55,6.04190133]
[1760868572232,0.69,187.63,187.56,0.71]
[1760868572734,6.01983946,187.63,187.56,6.04141987]
[1760868572935,0.63716405,187.62,187.56,6.04141987]
[1760868573147,6.65700351,187.63,187.56,6.04141987]
[1760868573549,0.69,187.62,187.54,0.53321957]
[1760868573747,0.63716405,187.61,187.53,0.71]
[1760868573944,0.69,187.6,187.53,0.71]
[1760868574341,0.69,187.6,187.53,6.04244582]
[1760868574543,0.69,187.59,187.53,6.04244582]
[1760868574849,1.32716405,187.62,187.54,0.71]
[1760868575146,6.65713066,187.62,187.54,0.71]
[1760868576449,6.65713066,187.62,187.55,5.33191149]
[1760868576753,0.69,187.61,187.55,5.33191149]
[1760868577450,0.69,187.6,187.54,6.04217645]
[1760868578046,0.69,187.6,187.53,6.0424515]
[1760868578434,5.33077456,187.59,187.53,5.3324515]
[1760868578649,1.32716405,187.58,187.51,5.33288564]
[1760868579359,1.32716405,187.58,187.51,6.04288564]
[1760868580358,6.6582288,187.58,187.51,6.04288564]
[1760868581957,6.6582288,187.58,187.52,0.71]
[1760868582961,6.6582288,187.58,187.52,6.04273213]
[1760868583934,5.9682288,187.58,187.53,0.71]
[1760868584134,6.6582288,187.58,187.53,0.71]
[1760868584555,6.65794529,187.59,187.53,5.33239318]
[1760868584761,0.63716405,187.61,187.54,0.71]
[1760868584961,6.65744455,187.61,187.54,0.71]
[1760868586550,6.65744455,187.61,187.54,6.0419175]
[1760868587555,5.96744455,187.61,187.54,0.71]
[1760868587762,0.69,187.6,187.51,0.71]
[1760868587965,23.51716405,187.59,187.5,10.87647521]
[1760868588143,0.69,187.58,187.49,0.71]
[1760868588345,5.33162721,187.56,187.49,6.04334042]
[1760868588568,1.32716405,187.55,187.49,6.04334042]
[1760868589076,36.20759329,187.59,187.5,0.71]
[1760868589077,6.65848305,187.58,187.5,0.71]
[1760868589254,22.88,187.59,187.51,10.87647521]
[1760868589462,0.69,187.6,187.51,10.87647521]
[1760868589463,6.65765741,187.6,187.52,1.24327645]
[1760868589659,6.65765741,187.6,187.53,0.71]
[1760868589860,0.69,187.59,187.5,11.58647521]
[1760868590167,1.32716405,187.58,187.5,1.24333333]
[1760868590477,5.33162721,187.56,187.5,5.33315885]
[1760868590674,1.32716405,187.55,187.48,5.33361923]
[1760868590845,0.69,187.54,187.47,0.91]
[1760868592069,6.02226346,187.54,187.47,6.24415843]
[1760868592249,0.63716405,187.53,187.47,6.24415843]
[1760868593160,1.32716405,187.53,187.47,6.24415843]
[1760868593471,0.69,187.52,187.47,0.2]
[1760868593656,0.69,187.51,187.47,0.2]
[1760868593847,0.69,187.5,187.47,0.2]
[1760868594048,23.57,187.5,187.47,0.2]
[1760868594358,0.63716405,187.49,187.47,0.2]
[1760868594554,0.69,187.48,187.47,0.2]
[1760868595655,6.02390228,187.48,187.47,0.2]
[1760868596372,0.63716405,187.53,187.47,6.24418631]
[1760868596577,0.69,187.54,187.48,0.53339022]
[1760868596954,0.69,187.54,187.47,6.24418631]
[1760868597166,0.69,187.53,187.47,6.24418631]
[1760868598268,1.32716405,187.53,187.47,6.24418631]
[1760868598860,6.65980215,187.53,187.47,5.53418631]
[1760868599174,104.09999999,187.64,187.51,22.88]
[1760868599175,0.63716405,187.59,187.51,22.88]
[1760868599474,0.69,187.58,187.52,0.53327645]
[1760868599777,0.5,187.55,187.48,11.58647521]
[1760868600166,0.5,187.55,187.5,5.33333333]
[1760868600567,0.69,187.54,187.48,5.33362819]
[1760868600870,1.32716405,187.53,187.47,0.2]
[1760868601252,0.63716405,187.53,187.47,0.91]
[1760868601452,0.63716405,187.57,187.49,10.87647521]
[1760868601653,0.69,187.6,187.51,10.87647521]
[1760868601965,23.57,187.6,187.52,1.24327645]
[1760868602172,5.33026229,187.61,187.53,6.04248013]
[1760868602466,0.63716405,187.6,187.53,5.33248013]
[1760868602660,5.33026229,187.61,187.54,1.24321957]
[1760868603778,6.02026229,187.61,187.54,6.57531782]
[1760868604358,0.63716405,187.62,187.55,0.71]
[1760868604970,0.69,187.61,187.54,5.86531782]
[1760868605166,5.96715358,187.62,187.55,0.71]
[1760868605167,0.63716405,187.62,187.55,0.71]
[1760868605585,1.32716405,187.63,187.55,0.71]
[1760868605895,0.63716405,187.63,187.56,5.86478993]
[1760868606190,1.32716405,187.63,187.56,6.57478993]
[1760868606353,0.63716405,187.63,187.56,5.86478993]
[1760868606564,0.63716405,187.66,187.57,11.58647521]
[1760868606759,0.69,187.65,187.58,0.71]
[1760868606993,23.51716405,187.64,187.53,16.20895534]
[1760868607312,10.87647521,187.61,187.49,6.04334447]
[1760868607499,10.87647521,187.61,187.47,13.53515576]
[1760868607500,22.88,187.58,187.47,0.2]
[1760868607694,5.33162721,187.56,187.47,0.2]
[1760868607908,22.88,187.53,187.47,0.2]
[1760868608211,1.32716405,187.52,187.47,0.2]
[1760868608518,0.69,187.51,187.47,0.2]
[1760868608807,1.32716405,187.5,187.47,0.2]
[1760868608980,0.69,187.49,187.47,0.2]
[1760868609178,0.63716405,187.48,187.47,0.2]
[1760868609380,1.32716405,187.48,187.47,0.2]
[1760868609981,6.66106633,187.48,187.47,0.2]
[1760868610187,5.33390228,187.48,187.47,0.2]
[1760868610607,0.63716405,187.5,187.47,0.2]
[1760868610785,0.68,187.49,187.47,0.2]
[1760868611091,23.51716405,187.48,187.47,0.2]
[1760868611283,24.19716405,187.48,187.47,0.2]
[1760868612206,29.53106633,187.48,187.47,0.2]
[1760868613998,33.8316537,187.48,187.47,0.2]
[1760868614806,33.8316537,187.48,187.41,0.2]
[1760868614807,75.2464094,187.48,187.41,0.2]
[1760868615312,57.61106633,187.48,187.41,0.88]
[1760868617108,0.72,187.47,187.41,0.2]
[1760868617311,0.63716405,187.46,187.41,0.2]
[1760868617819,0.72,187.45,187.41,0.2]
[1760868618008,0.63716405,187.46,187.41,0.88]
[1760868618211,1.35716405,187.46,187.41,0.88]
[1760868618934,0.63716405,187.47,187.42,0.68]
[1760868619213,28.65694391,187.57,187.42,0.68]
[1760868619214,0.63716405,187.5,187.42,0.68]
[1760868619416,1.35716405,187.5,187.42,0.68]
[1760868620701,5.33361779,187.49,187.42,6.01537708]
[1760868620896,0.63716405,187.48,187.42,0.68]
[1760868621800,1.35716405,187.53,187.43,10.87647521]
[1760868622003,1.35716405,187.53,187.44,1.21350405]
[1760868622198,1.35716405,187.53,187.45,0.68]
[1760868622603,5.96987226,187.53,187.46,5.33447135]
[1760868622899,0.72,187.52,187.44,6.01502521]
[1760868623096,0.72,187.51,187.44,6.01502521]
[1760868623325,0.72,187.51,187.44,6.54852926]
[1760868623535,19.3010726,187.53,187.45,0.68]
[1760868623716,6.05160263,187.57,187.46,11.40992234]
[1760868623919,5.96823869,187.58,187.48,33.75647521]
[1760868624229,5.33018506,187.62,187.5,10.87647521]
[1760868624404,5.33018506,187.62,187.54,10.87647521]
[1760868624722,0.63716405,187.61,187.55,6.54495406]
[1760868624920,0.63716405,187.62,187.53,5.8654786]
[1760868625219,0.72,187.61,187.54,0.68]
[1760868625811,23.51716405,187.6,187.52,0.53327645]
[1760868626012,0.72,187.59,187.52,0.53327645]
[1760868626325,0.63716405,187.58,187.51,10.87647521]
[1760868626523,22.88,187.6,187.5,16.20978434]
[1760868626524,22.88,187.6,187.53,0.68]
[1760868626721,28.21052861,187.6,187.54,5.33219579]
[1760868627031,0.63716405,187.59,187.54,0.68]
[1760868627206,0.63716405,187.59,187.55,0.68]
[1760868627400,28.21052861,187.6,187.55,0.68]
[1760868627808,28.93052861,187.6,187.55,0.68]
[1760868628221,1.35716405,187.59,187.53,0.68]
[1760868628614,28.21052861,187.6,187.53,6.54570568]
[1760868628615,28.84769266,187.6,187.53,6.54570568]
[1760868628819,28.21052861,187.6,187.53,6.01245767]
[1760868629013,0.63716405,187.59,187.53,6.01245767]
[1760868629220,5.33052861,187.6,187.54,0.68]
[1760868629612,24.23716405,187.61,187.54,0.68]
[1760868630023,0.63716405,187.63,187.55,0.53319114]
[1760868630212,5.96707351,187.63,187.56,6.01162721]
[1760868630412,0.72,187.62,187.52,0.68]
[1760868630615,22.88,187.6,187.52,0.68]
[1760868630923,1.35716405,187.59,187.52,0.68]
[1760868631438,5.33105874,187.58,187.52,6.01249746]
[1760868631734,6.68795482,187.59,187.52,6.01249746]
[1760868632721,0.72,187.58,187.52,5.33249746]
[1760868633606,0.72,187.58,187.51,0.53330489]
[1760868633812,0.72,187.58,187.51,5.86619306]
[1760868634557,0.72,187.58,187.51,6.54619306]
[1760868634834,5.96795482,187.59,187.53,5.33248013]
[1760868635136,5.96795482,187.59,187.52,0.68]
[1760868635310,5.96795482,187.59,187.52,6.01262899]
[1760868635738,0.72,187.58,187.52,6.01262899]
[1760868637042,6.05114458,187.58,187.52,6.01262899]
[1760868637427,5.96767353,187.6,187.53,1.21324801]
[1760868637737,0.72,187.59,187.52,5.33262899]
[1760868638119,1.35716405,187.58,187.5,10.87647521]
[1760868638336,1.35716405,187.58,187.51,0.68]
[1760868638634,1.35716405,187.58,187.49,5.3334914]
[1760868638836,102.82,187.57,187.48,0.68]
[1760868639035,18.66169021,187.55,187.45,16.21123114]
[1760868639341,1.35716405,187.54,187.46,0.68]
[1760868639929,1.35716405,187.54,187.42,22.88]
[1760868639930,22.88,187.5,187.39,1.4136464]
[1760868640124,1.35716405,187.49,187.4,5.33613107]
[1760868640323,1.35716405,187.49,187.4,6.01617001]
[1760868640649,1.35716405,187.49,187.39,23.08]
[1760868640650,50.92,187.48,187.39,0.2]
[1760868640820,1.35716405,187.47,187.39,0.2]
[1760868641021,5.33447135,187.46,187.39,0.2]
[1760868641321,1.35716405,187.45,187.39,0.2]
[1760868641525,0.72,187.44,187.39,0.2]
[1760868642428,5.33532518,187.43,187.39,0.2]
[1760868642630,5.97248923,187.43,187.39,0.2]
[1760868643132,5.33532518,187.43,187.39,0.2]
[1760868643342,1.35716405,187.45,187.39,0.88]
[1760868643523,5.33497044,187.45,187.39,0.2]
[1760868643724,5.33497044,187.45,187.39,0.89]
[1760868644125,6.69162669,187.47,187.39,0.89]
[1760868644426,6.69162669,187.47,187.4,0.69]
[1760868644942,0.68,187.46,187.39,5.53645369]
[1760868645236,0.63716405,187.45,187.39,6.22645369]
[1760868645436,1.31716405,187.45,187.39,0.89]
[1760868645838,0.63716405,187.46,187.41,5.53587576]
[1760868646040,0.63716405,187.46,187.41,0.89]
[1760868646243,0.63716405,187.46,187.42,0.69]
[1760868646422,5.97162669,187.47,187.42,0.69]
[1760868646740,6.65162669,187.47,187.42,0.69]
[1760868646938,0.68,187.46,187.41,0.2]
[1760868647435,0.68,187.46,187.41,6.22582988]
[1760868647635,5.97162669,187.47,187.42,0.69]